[Event "Titled Tuesday Blitz April 25 Late 2023"]
[White "Gurevich, Dmitry"]
[Black "Schnaider, Ilan"]
[WhiteFideId "2000407"]
[BlackFideId "169013"]
[WhiteElo "2506"]
[BlackElo "2224"]
[Result "0-1"]
[Round "05"]
[TimeControl "180+2"]
[Date "2023.04.25"]
[WhiteClock "0:00:01"]
[BlackClock "0:00:02"]

1. d4 {[%clk 0:03:00]}  Nf6 {[%clk 0:02:59]} 2. c4 {[%clk 0:02:59]}  g6 {[%clk 0:02:59]} 3. Nc3 {[%clk 0:02:59]}  d5 {[%clk 0:03:00]} 4. Nf3 {[%clk 0:02:58]}  Bg7 {[%clk 0:03:00]} 5. cxd5 {[%clk 0:02:58]}  Nxd5 {[%clk 0:02:59]} 6. Bd2 {[%clk 0:02:58]}  c5 {[%clk 0:02:58]} 7. Rc1 {[%clk 0:02:55]}  O-O {[%clk 0:02:59]} 8. dxc5 {[%clk 0:02:54]}  Nc6 {[%clk 0:02:57]} 9. e3 {[%clk 0:02:49]}  Ndb4 {[%clk 0:02:58]} 10. a3 {[%clk 0:02:48]}  Nd3+ {[%clk 0:02:58]} 11. Bxd3 {[%clk 0:02:48]}  Qxd3 {[%clk 0:02:59]} 12. Qe2 {[%clk 0:02:45]}  Bf5 {[%clk 0:02:59]} 13. e4 {[%clk 0:02:43]}  Qxe2+ {[%clk 0:02:58]} 14. Kxe2 {[%clk 0:02:42]}  Bg4 {[%clk 0:02:58]} 15. Be3 {[%clk 0:02:41]}  Na5 {[%clk 0:02:53]} 16. b4 {[%clk 0:02:33]}  Nc4 {[%clk 0:02:26]} 17. Nd5 {[%clk 0:02:27]}  Nxe3 {[%clk 0:02:25]} 18. Nxe3 {[%clk 0:02:20]}  Bd7 {[%clk 0:02:22]} 19. Nc4 {[%clk 0:02:06]}  Bb5 {[%clk 0:02:14]} 20. Rc2 {[%clk 0:01:52]}  a5 {[%clk 0:02:06]} 21. Rb1 {[%clk 0:01:40]}  Rfd8 {[%clk 0:01:44]} 22. g4 {[%clk 0:01:33]}  axb4 {[%clk 0:01:41]} 23. axb4 {[%clk 0:01:32]}  Ra2 {[%clk 0:01:36]} 24. Rxa2 {[%clk 0:01:05]}  Bxc4+ {[%clk 0:01:35]} 25. Ke3 {[%clk 0:01:05]}  Bxa2 {[%clk 0:01:31]} 26. Rc1 {[%clk 0:01:06]}  h5 {[%clk 0:01:28]} 27. g5 {[%clk 0:01:05]}  f6 {[%clk 0:01:23]} 28. h4 {[%clk 0:01:03]}  fxg5 {[%clk 0:01:23]} 29. hxg5 {[%clk 0:01:03]}  Be6 {[%clk 0:01:18]} 30. b5 {[%clk 0:01:01]}  Bg4 {[%clk 0:01:17]} 31. c6 {[%clk 0:00:59]}  bxc6 {[%clk 0:01:16]} 32. bxc6 {[%clk 0:00:58]}  Bxf3 {[%clk 0:00:58]} 33. Kxf3 {[%clk 0:00:57]}  Kf7 {[%clk 0:00:57]} 34. Ke3 {[%clk 0:00:54]}  Ke6 {[%clk 0:00:54]} 35. f4 {[%clk 0:00:54]}  Rc8 {[%clk 0:00:44]} 36. e5 {[%clk 0:00:29]}  Bxe5 {[%clk 0:00:18]} 37. fxe5 {[%clk 0:00:28]}  Kxe5 {[%clk 0:00:18]} 38. c7 {[%clk 0:00:24]}  Kd6 {[%clk 0:00:18]} 39. Rd1+ {[%clk 0:00:22]}  Ke6 {[%clk 0:00:15]} 40. Rc1 {[%clk 0:00:20]}  Kd7 {[%clk 0:00:13]} 41. Rd1+ {[%clk 0:00:20]}  Kxc7 {[%clk 0:00:11]} 42. Ke4 {[%clk 0:00:20]}  Rf8 {[%clk 0:00:12]} 43. Ke5 {[%clk 0:00:13]}  Rf5+ {[%clk 0:00:07]} 44. Ke6 {[%clk 0:00:13]}  Rxg5 {[%clk 0:00:07]} 45. Kxe7 {[%clk 0:00:14]}  Rg3 {[%clk 0:00:07]} 46. Rh1 {[%clk 0:00:09]}  Kc6 {[%clk 0:00:05]} 47. Kf6 {[%clk 0:00:09]}  Kd5 {[%clk 0:00:04]} 48. Rh4 {[%clk 0:00:05]}  Rg4 {[%clk 0:00:03]} 49. Rh3 {[%clk 0:00:05]}  Ke4 {[%clk 0:00:03]} 50. Rh1 {[%clk 0:00:05]}  Kf4 {[%clk 0:00:03]} 51. Rh3 {[%clk 0:00:04]}  Rg3 {[%clk 0:00:02]} 52. Rh1 {[%clk 0:00:04]}  Rg4 {[%clk 0:00:02]} 53. Rh3 {[%clk 0:00:04]}  Ke4 {[%clk 0:00:02]} 54. Rh1 {[%clk 0:00:04]}  Kf3 {[%clk 0:00:02]} 55. Rh3+ {[%clk 0:00:04]}  Kg2 {[%clk 0:00:03]} 56. Ra3 {[%clk 0:00:05]}  h4 {[%clk 0:00:03]} 57. Ke5 {[%clk 0:00:04]}  h3 {[%clk 0:00:03]} 58. Ra2+ {[%clk 0:00:05]}  Kh1 {[%clk 0:00:04]} 59. Ra1+ {[%clk 0:00:05]}  Rg1 {[%clk 0:00:04]} 60. Ra2 {[%clk 0:00:05]}  h2 {[%clk 0:00:05]} 61. Kf4 {[%clk 0:00:05]}  Rf1+ {[%clk 0:00:05]} 62. Kg3 {[%clk 0:00:05]}  Rb1 {[%clk 0:00:02]} 63. Rxh2+ {[%clk 0:00:04]}  Kg1 {[%clk 0:00:03]} 64. Rg2+ {[%clk 0:00:05]}  Kf1 {[%clk 0:00:03]} 65. Rf2+ {[%clk 0:00:06]}  Ke1 {[%clk 0:00:04]} 66. Rf6 {[%clk 0:00:06]}  Rb3+ {[%clk 0:00:04]} 67. Kg4 {[%clk 0:00:06]}  Rb4+ {[%clk 0:00:04]} 68. Kg5 {[%clk 0:00:06]}  Rb2 {[%clk 0:00:04]} 69. Kxg6 {[%clk 0:00:07]}  Rg2+ {[%clk 0:00:04]} 70. Kf7 {[%clk 0:00:07]}  Kd2 {[%clk 0:00:05]} 71. Rf4 {[%clk 0:00:07]}  Ke3 {[%clk 0:00:05]} 72. Rh4 {[%clk 0:00:08]}  Ra2 {[%clk 0:00:04]} 73. Ke7 {[%clk 0:00:08]}  Ra7+ {[%clk 0:00:04]} 74. Ke6 {[%clk 0:00:08]}  Kf3 {[%clk 0:00:03]} 75. Rb4 {[%clk 0:00:05]}  Ra6+ {[%clk 0:00:02]} 76. Ke5 {[%clk 0:00:04]}  Ra5+ {[%clk 0:00:02]} 77. Ke6 {[%clk 0:00:04]}  Ke3 {[%clk 0:00:02]} 78. Rh4 {[%clk 0:00:01]}  Kf3 {[%clk 0:00:02]} 0-1


[Site "https://www.chess.com"]

[Event "Titled Tuesday Blitz April 25 Late 2023"]
[White "Martinez Ramirez, Lennis"]
[Black "Bashkansky, Ethan"]
[WhiteFideId "3509079"]
[BlackFideId "2071533"]
[WhiteElo "2410"]
[BlackElo "2101"]
[Result "0-1"]
[Round "05"]
[TimeControl "180+2"]
[Date "2023.04.25"]
[WhiteClock "0:00:03"]
[BlackClock "0:00:03"]

1. c4 {[%clk 0:03:00]}  f5 {[%clk 0:03:00]} 2. Nc3 {[%clk 0:03:00]}  Nf6 {[%clk 0:03:00]} 3. d4 {[%clk 0:03:00]}  g6 {[%clk 0:03:01]} 4. g3 {[%clk 0:03:00]}  Bg7 {[%clk 0:03:02]} 5. Bg2 {[%clk 0:03:00]}  O-O {[%clk 0:03:02]} 6. Nf3 {[%clk 0:03:01]}  Nc6 {[%clk 0:03:03]} 7. O-O {[%clk 0:03:01]}  d6 {[%clk 0:03:04]} 8. d5 {[%clk 0:03:01]}  Na5 {[%clk 0:03:01]} 9. Qd3 {[%clk 0:02:50]}  c5 {[%clk 0:03:01]} 10. Bd2 {[%clk 0:02:46]}  a6 {[%clk 0:02:59]} 11. Ng5 {[%clk 0:02:40]}  Rb8 {[%clk 0:02:51]} 12. e4 {[%clk 0:02:33]}  b5 {[%clk 0:02:39]} 13. cxb5 {[%clk 0:02:13]}  axb5 {[%clk 0:02:36]} 14. Ne6 {[%clk 0:02:11]}  Bxe6 {[%clk 0:02:33]} 15. dxe6 {[%clk 0:02:11]}  b4 {[%clk 0:02:19]} 16. Nd5 {[%clk 0:01:54]}  Nxd5 {[%clk 0:01:59]} 17. exd5 {[%clk 0:01:49]}  Bxb2 {[%clk 0:01:58]} 18. Rab1 {[%clk 0:01:49]}  Bg7 {[%clk 0:01:56]} 19. Qe2 {[%clk 0:01:34]}  Qb6 {[%clk 0:01:44]} 20. h4 {[%clk 0:01:34]}  h6 {[%clk 0:01:30]} 21. Kh2 {[%clk 0:01:13]}  Qb5 {[%clk 0:01:27]} 22. Qd1 {[%clk 0:01:02]}  Nc4 {[%clk 0:01:23]} 23. Bc1 {[%clk 0:00:58]}  Ra8 {[%clk 0:01:17]} 24. Qc2 {[%clk 0:00:30]}  Na3 {[%clk 0:01:12]} 25. Bxa3 {[%clk 0:00:29]}  Rxa3 {[%clk 0:01:13]} 26. Rb3 {[%clk 0:00:29]}  Qa4 {[%clk 0:01:08]} 27. h5 {[%clk 0:00:20]}  Rxa2 {[%clk 0:01:02]} 28. Qd3 {[%clk 0:00:20]}  Ra3 {[%clk 0:00:55]} 29. Rfb1 {[%clk 0:00:17]}  Rxb3 {[%clk 0:00:54]} 30. Rxb3 {[%clk 0:00:17]}  Rc8 {[%clk 0:00:35]} 31. Qc4 {[%clk 0:00:17]}  Qa1 {[%clk 0:00:23]} 32. hxg6 {[%clk 0:00:14]}  Ra8 {[%clk 0:00:20]} 33. Rf3 {[%clk 0:00:11]}  Qf6 {[%clk 0:00:09]} 34. Bh3 {[%clk 0:00:11]}  Qxg6 {[%clk 0:00:05]} 35. Bxf5 {[%clk 0:00:11]}  Qg5 {[%clk 0:00:05]} 36. Kg2 {[%clk 0:00:11]}  Rf8 {[%clk 0:00:05]} 37. Qe4 {[%clk 0:00:11]}  Kh8 {[%clk 0:00:01]} 38. Rf4 {[%clk 0:00:12]}  Be5 {[%clk 0:00:01]} 39. Rf3 {[%clk 0:00:09]}  b3 {[%clk 0:00:01]} 40. g4 {[%clk 0:00:07]}  b2 {[%clk 0:00:01]} 41. Rb3 {[%clk 0:00:07]}  Rxf5 {[%clk 0:00:02]} 42. Qxf5 {[%clk 0:00:07]}  Qxf5 {[%clk 0:00:02]} 43. gxf5 {[%clk 0:00:08]}  Kg7 {[%clk 0:00:03]} 44. Kf3 {[%clk 0:00:05]}  Kf6 {[%clk 0:00:03]} 45. Ke4 {[%clk 0:00:05]}  Bd4 {[%clk 0:00:03]} 46. f4 {[%clk 0:00:03]}  h5 {[%clk 0:00:03]} 0-1


[Site "https://www.chess.com"]

[Event "Titled Tuesday Blitz April 25 Late 2023"]
[White "Hoffmann, Asa"]
[Black "Ozates, Tuna"]
[WhiteFideId "2001470"]
[BlackFideId "6354521"]
[WhiteElo "2117"]
[BlackElo "2151"]
[Result "0-1"]
[Round "05"]
[TimeControl "180+2"]
[Date "2023.04.25"]
[WhiteClock "0:01:05"]
[BlackClock "0:00:50"]

1. d4 {[%clk 0:02:55]}  f5 {[%clk 0:02:59]} 2. Nc3 {[%clk 0:02:54]}  Nf6 {[%clk 0:02:59]} 3. Bg5 {[%clk 0:02:54]}  d5 {[%clk 0:02:43]} 4. f3 {[%clk 0:02:53]}  Nbd7 {[%clk 0:02:17]} 5. e4 {[%clk 0:02:53]}  dxe4 {[%clk 0:02:16]} 6. Bc4 {[%clk 0:02:51]}  h6 {[%clk 0:02:12]} 7. Bh4 {[%clk 0:02:38]}  g5 {[%clk 0:02:10]} 8. Bf2 {[%clk 0:02:37]}  Bg7 {[%clk 0:02:10]} 9. fxe4 {[%clk 0:02:37]}  fxe4 {[%clk 0:02:10]} 10. Nge2 {[%clk 0:02:28]}  Nb6 {[%clk 0:02:03]} 11. Bb3 {[%clk 0:02:28]}  Bg4 {[%clk 0:01:58]} 12. h3 {[%clk 0:02:23]}  Bh5 {[%clk 0:01:57]} 13. Qd2 {[%clk 0:02:16]}  Qd7 {[%clk 0:01:49]} 14. g4 {[%clk 0:02:09]}  Bg6 {[%clk 0:01:44]} 15. O-O-O {[%clk 0:02:08]}  O-O-O {[%clk 0:01:42]} 16. Bg3 {[%clk 0:02:01]}  e6 {[%clk 0:01:37]} 17. Rhf1 {[%clk 0:01:59]}  Nfd5 {[%clk 0:01:36]} 18. Be5 {[%clk 0:01:48]}  e3 {[%clk 0:01:28]} 19. Qe1 {[%clk 0:01:46]}  Bxe5 {[%clk 0:01:20]} 20. dxe5 {[%clk 0:01:43]}  Qc6 {[%clk 0:01:18]} 21. Nd4 {[%clk 0:01:43]}  Qe8 {[%clk 0:01:09]} 22. Nce2 {[%clk 0:01:36]}  c5 {[%clk 0:01:07]} 23. Nf5 {[%clk 0:01:29]}  exf5 {[%clk 0:01:02]} 24. gxf5 {[%clk 0:01:29]}  Bh5 {[%clk 0:01:02]} 25. Qa5 {[%clk 0:01:14]}  Bxe2 {[%clk 0:00:55]} 26. Qxc5+ {[%clk 0:01:12]}  Kb8 {[%clk 0:00:55]} 27. f6 {[%clk 0:01:08]}  Bxf1 {[%clk 0:00:53]} 28. Rxf1 {[%clk 0:01:06]}  e2 {[%clk 0:00:52]} 29. Re1 {[%clk 0:01:05]}  Qxe5 {[%clk 0:00:53]} 30. f7 {[%clk 0:01:05]}  Qe3+ {[%clk 0:00:51]} 31. Kb1 {[%clk 0:01:05]}  Qxc5 {[%clk 0:00:50]} 0-1


[Site "https://www.chess.com"]

[Event "Titled Tuesday Blitz April 25 Late 2023"]
[White "Liu, Casper"]
[Black "Krishnan, Varun"]
[WhiteFideId "1454153"]
[BlackFideId "5054508"]
[WhiteElo "2221"]
[BlackElo "2341"]
[Result "1-0"]
[Round "05"]
[TimeControl "180+2"]
[Date "2023.04.25"]
[WhiteClock "0:01:32"]
[BlackClock "0:00:04"]

1. e4 {[%clk 0:02:54]}  e5 {[%clk 0:02:59]} 2. Nf3 {[%clk 0:02:54]}  Nc6 {[%clk 0:02:58]} 3. d4 {[%clk 0:02:54]}  exd4 {[%clk 0:02:58]} 4. Nxd4 {[%clk 0:02:55]}  Nf6 {[%clk 0:02:57]} 5. Nxc6 {[%clk 0:02:54]}  bxc6 {[%clk 0:02:58]} 6. e5 {[%clk 0:02:55]}  Qe7 {[%clk 0:02:59]} 7. Qe2 {[%clk 0:02:55]}  Nd5 {[%clk 0:02:58]} 8. c4 {[%clk 0:02:56]}  Ba6 {[%clk 0:02:51]} 9. Qe4 {[%clk 0:02:56]}  Nf6 {[%clk 0:02:45]} 10. Qe2 {[%clk 0:02:56]}  Nd5 {[%clk 0:02:43]} 11. Qe4 {[%clk 0:02:56]}  Qb4+ {[%clk 0:02:18]} 12. Nd2 {[%clk 0:02:51]}  Nb6 {[%clk 0:02:17]} 13. a3 {[%clk 0:02:48]}  Qe7 {[%clk 0:02:16]} 14. b4 {[%clk 0:02:49]}  d5 {[%clk 0:02:09]} 15. exd6 {[%clk 0:02:47]}  Qxe4+ {[%clk 0:02:09]} 16. Nxe4 {[%clk 0:02:48]}  cxd6 {[%clk 0:02:09]} 17. c5 {[%clk 0:02:27]}  Bxf1 {[%clk 0:02:06]} 18. Kxf1 {[%clk 0:02:24]}  dxc5 {[%clk 0:02:02]} 19. bxc5 {[%clk 0:02:25]}  Nd5 {[%clk 0:01:59]} 20. Bb2 {[%clk 0:02:24]}  Rb8 {[%clk 0:01:44]} 21. Be5 {[%clk 0:02:24]}  Rb3 {[%clk 0:01:42]} 22. g3 {[%clk 0:02:18]}  f6 {[%clk 0:01:42]} 23. Bd4 {[%clk 0:02:14]}  Rd3 {[%clk 0:01:36]} 24. Bb2 {[%clk 0:02:13]}  f5 {[%clk 0:01:29]} 25. Nd6+ {[%clk 0:02:12]}  Bxd6 {[%clk 0:01:28]} 26. cxd6 {[%clk 0:02:13]}  Kf7 {[%clk 0:01:21]} 27. Rc1 {[%clk 0:02:12]}  Rd2 {[%clk 0:01:17]} 28. Be5 {[%clk 0:02:05]}  Re8 {[%clk 0:01:14]} 29. d7 {[%clk 0:01:52]}  Rxe5 {[%clk 0:01:04]} 30. d8=Q {[%clk 0:01:50]}  Ne3+ {[%clk 0:01:03]} 31. fxe3 {[%clk 0:01:50]}  Rxd8 {[%clk 0:01:03]} 32. Ke2 {[%clk 0:01:49]}  Rd6 {[%clk 0:00:54]} 33. Rc3 {[%clk 0:01:47]}  g6 {[%clk 0:00:54]} 34. Rhc1 {[%clk 0:01:48]}  Ra5 {[%clk 0:00:53]} 35. Rxc6 {[%clk 0:01:46]}  Rxc6 {[%clk 0:00:53]} 36. Rxc6 {[%clk 0:01:47]}  Rxa3 {[%clk 0:00:54]} 37. Rc7+ {[%clk 0:01:47]}  Kg8 {[%clk 0:00:54]} 38. Kf3 {[%clk 0:01:47]}  a5 {[%clk 0:00:54]} 39. Ra7 {[%clk 0:01:47]}  h6 {[%clk 0:00:53]} 40. Kf4 {[%clk 0:01:46]}  Ra4+ {[%clk 0:00:53]} 41. Ke5 {[%clk 0:01:45]}  Re4+ {[%clk 0:00:23]} 42. Kf6 {[%clk 0:01:44]}  Rxe3 {[%clk 0:00:22]} 43. Kxg6 {[%clk 0:01:43]}  Re6+ {[%clk 0:00:12]} 44. Kxf5 {[%clk 0:01:43]}  Re2 {[%clk 0:00:13]} 45. Kg6 {[%clk 0:01:41]}  Kf8 {[%clk 0:00:10]} 46. h4 {[%clk 0:01:37]}  Re6+ {[%clk 0:00:10]} 47. Kf5 {[%clk 0:01:37]}  Re3 {[%clk 0:00:10]} 48. g4 {[%clk 0:01:37]}  Ra3 {[%clk 0:00:05]} 49. h5 {[%clk 0:01:36]}  Ra4 {[%clk 0:00:04]} 50. Ra6 {[%clk 0:01:31]}  Kg7 {[%clk 0:00:03]} 51. Rg6+ {[%clk 0:01:30]}  Kh7 {[%clk 0:00:04]} 52. Ra6 {[%clk 0:01:30]}  Ra1 {[%clk 0:00:04]} 53. Ra7+ {[%clk 0:01:30]}  Kg8 {[%clk 0:00:02]} 54. Kg6 {[%clk 0:01:30]}  Kf8 {[%clk 0:00:02]} 55. Kxh6 {[%clk 0:01:30]}  a4 {[%clk 0:00:03]} 56. g5 {[%clk 0:01:31]}  a3 {[%clk 0:00:04]} 57. g6 {[%clk 0:01:31]}  a2 {[%clk 0:00:04]} 58. g7+ {[%clk 0:01:32]}  Kg8 {[%clk 0:00:04]} 59. Ra8+ {[%clk 0:01:32]} 1-0


[Site "https://www.chess.com"]

[Event "Titled Tuesday Blitz April 25 Late 2023"]
[White "Skibbe, Willi"]
[Black "Liu, Eric"]
[WhiteFideId "4682190"]
[BlackFideId "30960240"]
[WhiteElo "2176"]
[BlackElo "2094"]
[Result "0-1"]
[Round "05"]
[TimeControl "180+2"]
[Date "2023.04.25"]
[WhiteClock "0:00:02"]
[BlackClock "0:01:45"]

1. d4 {[%clk 0:03:00]}  b6 {[%clk 0:03:00]} 2. e4 {[%clk 0:02:50]}  Bb7 {[%clk 0:03:01]} 3. Nd2 {[%clk 0:02:50]}  e6 {[%clk 0:03:02]} 4. Ngf3 {[%clk 0:02:49]}  h5 {[%clk 0:03:01]} 5. Bd3 {[%clk 0:02:44]}  h4 {[%clk 0:03:02]} 6. h3 {[%clk 0:02:42]}  d5 {[%clk 0:03:01]} 7. e5 {[%clk 0:02:32]}  g6 {[%clk 0:03:01]} 8. Nf1 {[%clk 0:02:30]}  Be7 {[%clk 0:03:01]} 9. Ne3 {[%clk 0:02:30]}  Nh6 {[%clk 0:03:01]} 10. Ng4 {[%clk 0:02:28]}  Nf5 {[%clk 0:03:02]} 11. Bf4 {[%clk 0:02:22]}  c5 {[%clk 0:03:02]} 12. c3 {[%clk 0:02:21]}  Nc6 {[%clk 0:03:01]} 13. Bxf5 {[%clk 0:01:54]}  gxf5 {[%clk 0:03:02]} 14. Ne3 {[%clk 0:01:40]}  Ba6 {[%clk 0:03:02]} 15. Qa4 {[%clk 0:01:37]}  Qc8 {[%clk 0:03:02]} 16. Bg5 {[%clk 0:01:30]}  cxd4 {[%clk 0:02:56]} 17. cxd4 {[%clk 0:01:18]}  Bb4+ {[%clk 0:02:56]} 18. Nd2 {[%clk 0:01:15]}  b5 {[%clk 0:02:36]} 19. Qd1 {[%clk 0:01:05]}  Nxd4 {[%clk 0:02:36]} 20. O-O {[%clk 0:01:02]}  Rg8 {[%clk 0:02:32]} 21. f4 {[%clk 0:00:55]}  Nc6 {[%clk 0:02:22]} 22. Rc1 {[%clk 0:00:54]}  Qd7 {[%clk 0:02:22]} 23. Nf3 {[%clk 0:00:53]}  Ba5 {[%clk 0:02:22]} 24. Kh2 {[%clk 0:00:43]}  Bb6 {[%clk 0:02:22]} 25. Nc2 {[%clk 0:00:37]}  d4 {[%clk 0:02:20]} 26. Qd3 {[%clk 0:00:30]}  Qb7 {[%clk 0:02:14]} 27. Ncxd4 {[%clk 0:00:23]}  b4 {[%clk 0:02:05]} 28. Nb5 {[%clk 0:00:23]}  Bxb5 {[%clk 0:02:06]} 29. Qxb5 {[%clk 0:00:22]}  Bg1+ {[%clk 0:02:06]} 30. Nxg1 {[%clk 0:00:14]}  Qxb5 {[%clk 0:02:07]} 31. Nf3 {[%clk 0:00:14]}  Kd7 {[%clk 0:02:06]} 32. Rfd1+ {[%clk 0:00:14]}  Ke8 {[%clk 0:02:00]} 33. Rd6 {[%clk 0:00:13]}  Ne7 {[%clk 0:01:44]} 34. Rc7 {[%clk 0:00:07]}  Nd5 {[%clk 0:01:44]} 35. Rcd7 {[%clk 0:00:02]}  Qxd7 {[%clk 0:01:43]} 36. Rxd7 {[%clk 0:00:01]}  Kxd7 {[%clk 0:01:44]} 37. Nd4 {[%clk 0:00:01]}  f6 {[%clk 0:01:44]} 38. Nb5 {[%clk 0:00:02]}  fxg5 {[%clk 0:01:45]} 0-1


[Site "https://www.chess.com"]

[Event "Titled Tuesday Blitz April 25 Late 2023"]
[White "Novikov, Evgenij"]
[Black "Gonzalez, Francisco Silva"]
[WhiteFideId "4125380"]
[BlackFideId "1512285"]
[WhiteElo "2242"]
[BlackElo "2074"]
[Result "0-1"]
[Round "05"]
[TimeControl "180+2"]
[Date "2023.04.25"]
[WhiteClock "0:00:04"]
[BlackClock "0:01:41"]

1. e4 {[%clk 0:03:00]}  e5 {[%clk 0:02:59]} 2. Nf3 {[%clk 0:03:00]}  Nc6 {[%clk 0:02:58]} 3. Bc4 {[%clk 0:03:00]}  Bc5 {[%clk 0:02:56]} 4. d4 {[%clk 0:02:48]}  Bxd4 {[%clk 0:02:56]} 5. Nxd4 {[%clk 0:02:42]}  Nxd4 {[%clk 0:02:55]} 6. f4 {[%clk 0:02:30]}  d6 {[%clk 0:02:53]} 7. O-O {[%clk 0:02:25]}  Nf6 {[%clk 0:02:51]} 8. fxe5 {[%clk 0:02:20]}  dxe5 {[%clk 0:02:51]} 9. Bg5 {[%clk 0:02:20]}  Qe7 {[%clk 0:02:50]} 10. c3 {[%clk 0:01:48]}  Ne6 {[%clk 0:02:47]} 11. Bxe6 {[%clk 0:01:20]}  Bxe6 {[%clk 0:02:42]} 12. Bxf6 {[%clk 0:01:11]}  gxf6 {[%clk 0:02:42]} 13. Qf3 {[%clk 0:01:11]}  O-O-O {[%clk 0:02:39]} 14. Qxf6 {[%clk 0:01:00]}  Qc5+ {[%clk 0:02:38]} 15. Qf2 {[%clk 0:00:56]}  Qxf2+ {[%clk 0:02:35]} 16. Kxf2 {[%clk 0:00:57]}  Rd3 {[%clk 0:02:29]} 17. Re1 {[%clk 0:00:51]}  Rg8 {[%clk 0:02:29]} 18. g3 {[%clk 0:00:29]}  Bg4 {[%clk 0:02:26]} 19. Re3 {[%clk 0:00:24]}  Rd1 {[%clk 0:02:11]} 20. Re1 {[%clk 0:00:22]}  Rgd8 {[%clk 0:02:10]} 21. Na3 {[%clk 0:00:14]}  R1d2+ {[%clk 0:01:57]} 22. Kg1 {[%clk 0:00:13]}  Bh3 {[%clk 0:01:47]} 23. Nc4 {[%clk 0:00:11]}  Rg2+ {[%clk 0:01:46]} 24. Kh1 {[%clk 0:00:11]}  b5 {[%clk 0:01:45]} 25. Nxe5 {[%clk 0:00:11]}  Rdd2 {[%clk 0:01:44]} 26. Nf3 {[%clk 0:00:11]}  Rxb2 {[%clk 0:01:43]} 27. Rg1 {[%clk 0:00:05]}  Rgf2 {[%clk 0:01:42]} 28. Ng5 {[%clk 0:00:04]}  Rxh2# {[%clk 0:01:41]} 0-1


[Site "https://www.chess.com"]

[Event "Titled Tuesday Blitz April 25 Late 2023"]
[White "Korkmaz, Necmettin"]
[Black "Tsyhanchuk, Stanislav"]
[WhiteFideId "6303285"]
[BlackFideId "13505130"]
[WhiteElo "2097"]
[BlackElo "2173"]
[Result "0-1"]
[Round "05"]
[TimeControl "180+2"]
[Date "2023.04.25"]
[WhiteClock "0:00:26"]
[BlackClock "0:00:17"]

1. e4 {[%clk 0:03:00]}  c5 {[%clk 0:03:00]} 2. Nc3 {[%clk 0:02:59]}  Nc6 {[%clk 0:02:59]} 3. f4 {[%clk 0:02:58]}  g6 {[%clk 0:02:59]} 4. Nf3 {[%clk 0:02:58]}  Bg7 {[%clk 0:02:59]} 5. Bb5 {[%clk 0:02:58]}  Nd4 {[%clk 0:02:59]} 6. O-O {[%clk 0:02:58]}  Nxb5 {[%clk 0:02:58]} 7. Nxb5 {[%clk 0:02:58]}  a6 {[%clk 0:02:58]} 8. Nc3 {[%clk 0:02:58]}  e6 {[%clk 0:02:58]} 9. e5 {[%clk 0:02:49]}  d5 {[%clk 0:02:45]} 10. d4 {[%clk 0:02:39]}  cxd4 {[%clk 0:02:37]} 11. Nxd4 {[%clk 0:02:38]}  Ne7 {[%clk 0:02:37]} 12. Be3 {[%clk 0:02:38]}  O-O {[%clk 0:02:37]} 13. Qe1 {[%clk 0:02:28]}  b5 {[%clk 0:02:31]} 14. Rd1 {[%clk 0:02:20]}  f6 {[%clk 0:02:23]} 15. exf6 {[%clk 0:02:11]}  Bxf6 {[%clk 0:02:22]} 16. Nce2 {[%clk 0:02:11]}  Qc7 {[%clk 0:02:13]} 17. c3 {[%clk 0:02:10]}  Bd7 {[%clk 0:02:05]} 18. Nb3 {[%clk 0:02:03]}  Rae8 {[%clk 0:01:55]} 19. Bd4 {[%clk 0:02:02]}  e5 {[%clk 0:01:47]} 20. fxe5 {[%clk 0:01:59]}  Bxe5 {[%clk 0:01:48]} 21. Bxe5 {[%clk 0:01:55]}  Qxe5 {[%clk 0:01:49]} 22. Ned4 {[%clk 0:01:54]}  Rxf1+ {[%clk 0:01:44]} 23. Qxf1 {[%clk 0:01:52]}  Nf5 {[%clk 0:01:43]} 24. Nxf5 {[%clk 0:01:48]}  Bxf5 {[%clk 0:01:44]} 25. Nd4 {[%clk 0:01:47]}  Bg4 {[%clk 0:01:33]} 26. Rd2 {[%clk 0:01:45]}  Qe3+ {[%clk 0:01:30]} 27. Qf2 {[%clk 0:01:44]}  Qe7 {[%clk 0:01:07]} 28. h3 {[%clk 0:01:44]}  Rf8 {[%clk 0:01:05]} 29. Qg3 {[%clk 0:01:43]}  Bh5 {[%clk 0:00:58]} 30. Nc6 {[%clk 0:01:41]}  Qf6 {[%clk 0:00:47]} 31. Rxd5 {[%clk 0:01:39]}  Qxc6 {[%clk 0:00:40]} 32. Rxh5 {[%clk 0:01:39]}  Qb6+ {[%clk 0:00:40]} 33. Kh2 {[%clk 0:01:38]}  Rf1 {[%clk 0:00:37]} 34. h4 {[%clk 0:01:06]}  Qg1+ {[%clk 0:00:35]} 35. Kh3 {[%clk 0:01:06]}  Qh1+ {[%clk 0:00:24]} 36. Kg4 {[%clk 0:01:07]}  gxh5+ {[%clk 0:00:22]} 37. Kxh5+ {[%clk 0:01:06]}  Kf7 {[%clk 0:00:22]} 38. Qc7+ {[%clk 0:01:04]}  Kf6 {[%clk 0:00:22]} 39. Qd6+ {[%clk 0:01:04]}  Kf5 {[%clk 0:00:21]} 40. Qd5+ {[%clk 0:01:04]}  Kf4 {[%clk 0:00:21]} 41. Qd4+ {[%clk 0:01:04]}  Kg3 {[%clk 0:00:21]} 42. Qg4+ {[%clk 0:01:00]}  Kh2 {[%clk 0:00:21]} 43. Qh3+ {[%clk 0:00:52]}  Kg1 {[%clk 0:00:21]} 44. Qe3+ {[%clk 0:00:52]}  Kxg2 {[%clk 0:00:21]} 45. Qg5+ {[%clk 0:00:52]}  Kh2 {[%clk 0:00:21]} 46. Qe5+ {[%clk 0:00:51]}  Kg1 {[%clk 0:00:21]} 47. Qe3+ {[%clk 0:00:50]}  Rf2 {[%clk 0:00:20]} 48. Qc1+ {[%clk 0:00:38]}  Kg2 {[%clk 0:00:19]} 49. Qg5+ {[%clk 0:00:38]}  Kf1 {[%clk 0:00:19]} 50. Qc1+ {[%clk 0:00:37]}  Kg2 {[%clk 0:00:19]} 51. Qg5+ {[%clk 0:00:37]}  Kh2 {[%clk 0:00:19]} 52. Qe5+ {[%clk 0:00:37]}  Kh3 {[%clk 0:00:19]} 53. Qe6+ {[%clk 0:00:36]}  Kg2 {[%clk 0:00:19]} 54. Qg4+ {[%clk 0:00:34]}  Kf1 {[%clk 0:00:19]} 55. Qd1+ {[%clk 0:00:34]}  Kg2 {[%clk 0:00:19]} 56. Qg4+ {[%clk 0:00:34]}  Kh2 {[%clk 0:00:19]} 57. Qd4 {[%clk 0:00:27]}  Qf3+ {[%clk 0:00:19]} 58. Kg5 {[%clk 0:00:26]}  Qg3+ {[%clk 0:00:19]} 59. Kh6 {[%clk 0:00:26]}  Qf4+ {[%clk 0:00:17]} 0-1


[Site "https://www.chess.com"]